bitfinex-derivatives/quotes_BTCF0:USTF0_20241029
["timestamp","ask_amount","ask_price","bid_price","bid_amount"]
[1730173632339,0.17863111,71022.0,71017.0,0.37498862]
[1730173632340,0.10817711,71022.0,71018.0,0.07026233]
[1730173632542,0.10817711,71019.0,71013.0,0.08431397]
[1730173632838,0.10817711,71019.0,71017.0,0.07027797]
[1730173633041,0.070458,71018.0,71017.0,0.07027797]
[1730173633450,0.070458,71018.0,71017.0,0.17768399]
[1730173633639,0.070458,71018.0,71017.0,0.10740368]
[1730173634239,0.10817711,71019.0,71017.0,0.10740338]
[1730173634439,0.10817711,71019.0,71018.0,0.07028878]
[1730173634744,0.071457,71019.0,71018.0,0.07028878]
[1730173635348,0.070458,71018.0,71017.0,0.07028878]
[1730173635551,0.070458,71018.0,71017.0,0.17769197]
[1730173635747,0.070459,71017.0,71016.0,0.07028878]
[1730173635943,0.070459,71017.0,71016.0,0.17769323]
[1730173636141,0.070459,71017.0,71016.0,0.10740445]
[1730173636458,0.070459,71017.0,71016.0,0.17767766]
[1730173637541,0.07046,71016.0,71015.0,0.24891132]
[1730173637742,0.07046,71016.0,71015.0,0.28604487]
[1730173637943,0.07046,71016.0,71015.0,0.17863811]
[1730173638247,0.07046,71016.0,71015.0,0.22079714]
[1730173638746,0.07046,71016.0,71011.0,0.01412066]
[1730173638747,0.10917711,71016.0,71011.0,0.01412066]
[1730173638946,0.070465,71011.0,71007.0,0.04215398]
[1730173639142,0.070468,71008.0,71007.0,0.04215398]
[1730173639344,0.070472,71004.0,71003.0,0.04215398]
[1730173639555,0.070473,71003.0,71002.0,0.04215398]
[1730173639748,0.070473,71003.0,71001.0,0.04215398]
[1730173639749,0.10817711,71003.0,71001.0,0.04215398]
[1730173639945,0.10817711,71003.0,70998.0,0.04215398]
[1730173640245,0.10817711,71003.0,70995.0,0.05599895]
[1730173640246,0.070475,71001.0,70995.0,0.05599895]
[1730173640445,0.070482,70994.0,70993.0,0.04215398]
[1730173640657,0.070483,70993.0,70992.0,0.04215398]
[1730173641048,0.10917711,71003.0,70992.0,0.15033109]
[1730173641352,0.07047,71006.0,71003.0,0.070472]
[1730173641652,0.0456,71007.0,71006.0,0.07047]
[1730173643055,0.0472,71021.0,71007.0,0.070469]
[1730173643244,0.070458,71018.0,71007.0,0.070469]
[1730173643552,0.0456,71019.0,71007.0,0.070469]
[1730173644052,0.0456,71019.0,71007.0,0.431269]
[1730173644242,0.10817711,71026.0,71018.0,0.070458]
[1730173644444,0.10817711,71026.0,71018.0,0.10817711]
[1730173644739,0.10817711,71026.0,71025.0,0.070451]
[1730173645651,0.17862711,71026.0,71025.0,0.070451]
[1730173645852,0.10817711,71026.0,71025.0,0.070451]
[1730173646843,0.0495,71029.0,71028.0,0.070448]
[1730173648453,0.10817711,71036.0,71027.0,0.10817711]
[1730173648651,0.10817711,71036.0,71032.0,0.070444]
[1730173650756,0.00411259,71033.0,71032.0,0.070444]
[1730173651747,0.00411259,71033.0,71032.0,0.431244]
[1730173651950,0.00411259,71033.0,71032.0,0.526044]
[1730173654065,0.00411259,71033.0,71032.0,0.575044]
[1730173654368,0.070428,71048.0,71032.0,1.20934589]
[1730173654587,0.07253686,71052.0,71049.0,0.070427]
[1730173654866,0.00211186,71052.0,71049.0,0.070427]
[1730173655459,0.00211186,71052.0,71050.0,0.070426]
[1730173655756,0.07253586,71052.0,71050.0,0.070426]
[1730173656159,0.00211186,71052.0,71050.0,0.070426]
[1730173656358,0.070425,71051.0,71050.0,0.070426]
[1730173656549,0.070425,71051.0,71032.0,0.58901975]
[1730173656550,0.10817711,71051.0,71032.0,0.37477575]
[1730173656751,0.10817711,71035.0,71034.0,0.070442]
[1730173656950,0.3608,71048.0,71038.0,0.070438]
[1730173656951,0.10817711,71039.0,71038.0,0.070438]
[1730173657564,0.070437,71040.0,71038.0,0.070438]
[1730173658050,0.070437,71040.0,71039.0,0.070437]
[1730173658254,0.00411186,71052.0,71039.0,0.21084608]
[1730173658448,0.070426,71051.0,71049.0,0.10817711]
[1730173658653,0.00411186,71052.0,71051.0,0.070425]
[1730173659364,0.00211186,71052.0,71051.0,0.070425]
[1730173660164,0.00411186,71052.0,71051.0,0.070425]
[1730173660361,0.07453586,71052.0,71051.0,0.070425]
[1730173660864,0.07453586,71052.0,71051.0,0.071425]
[1730173661059,0.11777514,71052.0,71051.0,0.071425]
[1730173661360,0.15227185,71052.0,71051.0,0.071425]
[1730173661563,0.15227185,71052.0,71029.0,0.3608]
[1730173661564,0.86488785,71052.0,71029.0,0.3608]
[1730173661760,0.86488785,71052.0,71041.0,0.070435]
[1730173661761,0.15300752,71044.0,71041.0,0.070435]
[1730173661955,0.070433,71043.0,71041.0,0.070435]
[1730173662266,0.07773599,71042.0,71041.0,0.070435]
[1730173662461,0.14818372,71042.0,71038.0,0.10817711]
[1730173662664,0.07774972,71041.0,71031.0,0.01356481]
[1730173662854,0.070442,71035.0,71031.0,0.01356481]
[1730173663060,0.07774972,71034.0,71032.0,0.070443]
[1730173663364,0.14819172,71034.0,71032.0,0.070443]
[1730173664166,0.14819172,71034.0,71033.0,0.07255465]
[1730173664362,0.15019172,71034.0,71033.0,0.07255465]
[1730173665866,0.1069448,71034.0,71033.0,0.00211165]
[1730173666465,0.14819353,71034.0,71033.0,0.00211165]
[1730173667157,0.57051353,71034.0,71033.0,0.00211165]
[1730173667365,0.57251353,71034.0,71033.0,0.00211165]
[1730173667757,0.62305783,71034.0,71033.0,0.00211165]
[1730173668065,0.494762,71034.0,71033.0,0.00211165]
[1730173669170,0.070455,71021.0,71020.0,0.12201031]
[1730173669464,0.070457,71019.0,71018.0,0.10817711]
[1730173670662,0.071457,71019.0,71018.0,0.10817711]
[1730173671064,0.001,71019.0,71018.0,0.17863511]
[1730173671584,0.002,71019.0,71018.0,0.17863511]
[1730173672271,0.002,71019.0,71018.0,0.53943511]
[1730173674369,0.072457,71019.0,71018.0,0.53943511]
[1730173674871,0.072457,71019.0,71018.0,0.46897711]
[1730173675273,0.072457,71019.0,71018.0,0.10817711]
[1730173675767,0.002,71019.0,71018.0,0.17863511]
[1730173677086,0.070444,71032.0,71029.0,0.070446]
[1730173677273,0.0345079,71030.0,71029.0,0.070447]
[1730173677780,0.070444,71032.0,71029.0,0.10817711]
[1730173677972,0.070444,71032.0,71030.0,0.070446]
[1730173678274,0.03450492,71031.0,71030.0,0.21243154]
[1730173678469,0.070433,71043.0,71036.0,0.070439]
[1730173678667,0.070435,71041.0,71040.0,0.10817711]
[1730173678869,0.1049387,71041.0,71040.0,0.10817711]
[1730173679276,0.1049387,71041.0,71033.0,0.3608]
[1730173679473,0.070439,71037.0,71036.0,0.10817711]
[1730173679775,0.1049427,71037.0,71036.0,0.31934802]
[1730173680172,0.070439,71037.0,71036.0,0.31934802]
[1730173681475,0.070439,71037.0,71036.0,0.32134802]
[1730173681979,0.072439,71037.0,71036.0,0.32134802]
[1730173682183,0.072439,71037.0,71036.0,0.39178802]
[1730173683481,0.072439,71037.0,71036.0,0.39078802]
[1730173683785,0.072439,71037.0,71036.0,0.40491859]
[1730173684275,0.072439,71037.0,71036.0,0.40391859]
[1730173684590,0.070439,71037.0,71036.0,0.40491859]
[1730173684783,0.071439,71037.0,71036.0,0.33447859]
[1730173685679,0.071439,71037.0,71036.0,0.40491859]
[1730173686884,0.001,71037.0,71036.0,0.40491859]
[1730173687087,0.071439,71037.0,71036.0,0.33447859]
[1730173689075,0.071439,71037.0,71036.0,0.12330768]
[1730173689275,0.072439,71037.0,71036.0,0.12330768]
[1730173689482,0.072439,71037.0,71036.0,0.12230768]
[1730173689682,0.072439,71037.0,71036.0,0.19374768]
[1730173691075,0.07975404,71037.0,71036.0,0.19274768]
[1730173691379,0.07975404,71037.0,71036.0,0.76673287]
[1730173691980,0.15019304,71037.0,71036.0,0.22731576]
[1730173692184,1.14966726,71037.0,71036.0,0.001]
[1730173692483,0.07045,71026.0,71025.0,0.0021117]
[1730173692673,0.53942711,71026.0,71025.0,0.0021117]
[1730173692878,0.66771726,71026.0,71025.0,0.0021117]
[1730173693686,0.66871726,71026.0,71025.0,0.0031117]
[1730173694882,0.66871726,71026.0,71012.0,0.01408994]
[1730173694883,1.02166726,71026.0,71012.0,0.01408994]
[1730173695189,1.02166726,71026.0,71007.0,0.431268]
[1730173695190,0.070466,71010.0,71007.0,0.431268]
[1730173695485,0.07775404,71009.0,71008.0,0.070468]
[1730173695679,0.14822104,71009.0,71008.0,0.070468]
[1730173696079,0.301239,71009.0,71008.0,0.070468]
[1730173696277,0.070468,71008.0,71007.0,0.01355646]
[1730173696588,0.14822204,71008.0,71007.0,0.01355646]
[1730173696786,0.30124,71008.0,71007.0,0.01355646]
[1730173697096,0.14822204,71008.0,71007.0,0.01355646]
[1730173697685,0.07775404,71008.0,71003.0,0.00211245]
[1730173697885,0.10817711,71004.0,71003.0,0.00211245]
[1730173698092,0.17865011,71004.0,71002.0,0.070473]
[1730173699092,0.002,71008.0,71003.0,0.32083293]
[1730173699278,0.002,71008.0,71007.0,0.17864611]
[1730173699484,0.001,71008.0,71007.0,0.17864611]
[1730173699678,0.07046,71016.0,71014.0,0.070461]
[1730173699883,0.07046,71016.0,71014.0,0.11258203]
[1730173700188,0.07046,71016.0,71015.0,0.11258203]
[1730173700493,0.07046,71016.0,71015.0,0.11258072]
[1730173700979,0.07046,71016.0,71010.0,0.05616137]
[1730173700980,0.07046,71016.0,71011.0,0.11258372]
[1730173701183,0.07046,71016.0,71015.0,0.04211972]
[1730173701380,0.07046,71016.0,71015.0,0.11258072]
[1730173701683,0.07046,71016.0,71015.0,0.070461]
[1730173701684,0.07146,71016.0,71015.0,0.070461]
[1730173702489,0.07246,71016.0,71015.0,0.070461]
[1730173702681,0.070461,71015.0,71014.0,0.10817711]
[1730173702887,0.070461,71015.0,71010.0,0.431265]
[1730173702888,0.070461,71015.0,71010.0,0.52585848]
[1730173703195,0.070463,71013.0,71011.0,0.070464]
[1730173703386,0.11017711,71016.0,71011.0,0.070464]
[1730173703586,0.18063711,71016.0,71015.0,0.04211384]
[1730173703782,0.070462,71014.0,71013.0,0.04211384]
[1730173704885,0.070462,71014.0,71013.0,0.04210656]
[1730173705294,0.070462,71014.0,71012.0,0.11256956]
[1730173705497,0.001,71016.0,71011.0,0.10817711]
[1730173705792,0.001,71016.0,71015.0,0.15027853]
[1730173705995,0.001,71016.0,71015.0,0.10817711]
[1730173706184,0.070458,71018.0,71015.0,0.10817711]
[1730173706385,0.070458,71018.0,71017.0,0.070459]
[1730173706585,0.0952,71024.0,71019.0,0.070457]
[1730173706795,0.0952,71024.0,71015.0,0.10817711]
[1730173706796,0.070455,71021.0,71020.0,0.070456]
[1730173707994,0.071455,71021.0,71020.0,0.070456]
[1730173708992,0.002,71021.0,71020.0,0.070456]
[1730173709193,0.072455,71021.0,71020.0,0.070456]
[1730173711089,0.070462,71014.0,71010.0,0.070465]
[1730173711400,0.3628,71021.0,71010.0,0.21042137]
[1730173711401,0.070464,71012.0,71010.0,0.21042137]
[1730173711700,0.070465,71011.0,71010.0,0.21042137]
[1730173711885,0.10817711,71016.0,71010.0,0.21042137]
[1730173712084,0.070457,71019.0,71012.0,0.070463]
[1730173712295,0.15617711,71020.0,71012.0,0.070463]
[1730173712484,0.070462,71015.0,71012.0,0.070463]
[1730173712793,0.001,71014.0,71012.0,0.070463]
[1730173712996,0.070465,71011.0,71009.0,0.08418864]
[1730173713197,0.070466,71010.0,71009.0,0.070467]
[1730173713593,0.070466,71010.0,71009.0,0.2810382]
[1730173714189,0.070466,71010.0,71009.0,0.070467]
[1730173714796,0.071466,71010.0,71009.0,0.070467]
[1730173715407,0.072466,71010.0,71009.0,0.070467]
[1730173716102,0.002,71010.0,71009.0,0.070467]
[1730173717292,0.3608,71040.0,71009.0,1.61291913]
[1730173717493,0.3608,71040.0,71029.0,0.17862411]
[1730173717694,0.10817711,71037.0,71025.0,0.10817711]
[1730173717905,0.07255886,71030.0,71025.0,0.10817711]
[1730173718197,0.07255886,71030.0,71024.0,0.3608]
[1730173718399,0.070449,71027.0,71024.0,0.3608]
[1730173719095,0.070449,71027.0,71024.0,0.37474568]
[1730173719302,0.070449,71027.0,71024.0,0.44519768]
[1730173719803,0.10817711,71025.0,71014.0,0.002112]
[1730173720006,0.10817711,71020.0,71014.0,0.002112]
[1730173720205,0.03450991,71019.0,71018.0,0.070458]
[1730173721308,0.070455,71021.0,71018.0,0.070458]
[1730173721702,0.001,71020.0,71019.0,0.070457]
[1730173722194,0.071456,71020.0,71019.0,0.070457]
[1730173722395,0.070457,71019.0,71018.0,0.001]
[1730173722907,0.164157,71019.0,71018.0,0.001]
[1730173723199,0.164157,71019.0,71014.0,0.08680587]
[1730173723200,0.070458,71018.0,71014.0,0.08680587]
[1730173723403,0.0947,71019.0,71018.0,0.070458]
[1730173723602,0.0469,71019.0,71018.0,0.070458]
[1730173723803,0.001,71019.0,71018.0,0.070458]
[1730173724309,0.001,71020.0,71016.0,0.10817711]
[1730173724492,0.001,71020.0,71019.0,0.070457]
[1730173725403,0.07045,71026.0,71023.0,0.070452]
[1730173725605,0.070451,71025.0,71023.0,0.070452]
[1730173726104,0.070451,71025.0,71022.0,0.10817711]
[1730173727199,0.070452,71024.0,71022.0,0.10817711]
[1730173727403,0.070453,71023.0,71022.0,0.10817711]
[1730173727607,0.070455,71021.0,71018.0,0.10817711]
[1730173729706,0.070455,71021.0,71016.0,0.04210153]
[1730173729908,0.001,71021.0,71016.0,0.04210153]
[1730173730107,0.070456,71020.0,71019.0,0.10817711]
[1730173730909,0.001,71021.0,71019.0,0.10817711]
[1730173731211,0.002,71021.0,71019.0,0.10817711]
[1730173732018,0.072455,71021.0,71019.0,0.10817711]
[1730173732409,0.071455,71021.0,71019.0,0.10817711]
[1730173732713,0.001,71020.0,71019.0,0.10817711]
[1730173732911,0.001,71020.0,71019.0,0.15027864]
[1730173733214,0.002,71021.0,71020.0,0.070456]
[1730173733617,0.002,71021.0,71020.0,0.7997323]
[1730173733910,0.001,71021.0,71020.0,0.7997323]
[1730173734216,0.070449,71028.0,71025.0,0.070451]
[1730173734418,0.070445,71031.0,71027.0,0.10817711]
[1730173734612,0.070445,71031.0,71029.0,0.070447]
[1730173734805,0.11028997,71030.0,71025.0,0.04223758]
[1730173735021,0.11028997,71030.0,71022.0,0.40303758]
[1730173735022,0.070453,71023.0,71022.0,0.40303758]
[1730173735203,0.0941,71029.0,71021.0,0.04223758]
[1730173735519,0.070455,71021.0,71020.0,0.070455]
[1730173735713,0.071455,71021.0,71020.0,0.070455]
[1730173736311,0.15021919,71021.0,71020.0,0.070455]
[1730173736709,0.14921919,71021.0,71020.0,0.10817711]
[1730173737513,0.15021919,71021.0,71020.0,0.10817711]
[1730173738013,0.07976419,71021.0,71020.0,0.17863311]
[1730173738212,0.1502216,71021.0,71020.0,0.17863311]
[1730173739022,0.10696529,71021.0,71020.0,0.17863311]
[1730173739406,0.15022129,71021.0,71020.0,0.17863311]
[1730173739709,0.10696529,71021.0,71020.0,0.17863311]
[1730173740110,0.14922143,71021.0,71020.0,0.17863311]
[1730173740311,0.15022143,71021.0,71020.0,0.10817711]
[1730173740514,0.15022143,71021.0,71016.0,0.53943511]
[1730173740515,0.070459,71017.0,71016.0,0.53943511]
[1730173740707,0.14822674,71017.0,71016.0,0.17863511]
[1730173741411,0.10496929,71017.0,71016.0,0.17863511]
[1730173741618,0.14823235,71017.0,71016.0,0.17863511]
[1730173741917,0.10497229,71017.0,71016.0,0.17863511]
[1730173742819,0.10597229,71017.0,71016.0,0.17863511]
[1730173743215,0.002,71017.0,71014.0,0.01634387]
[1730173743521,0.070461,71015.0,71014.0,0.01634387]
[1730173746310,0.072461,71015.0,71014.0,0.01634387]
[1730173747719,0.072461,71015.0,71014.0,0.08680587]
[1730173748614,0.002,71015.0,71014.0,0.08680587]
[1730173748811,0.002,71015.0,71014.0,0.44760587]
[1730173749212,0.002,71015.0,71014.0,0.55578298]
[1730173749423,0.002,71015.0,71014.0,0.44760587]
[1730173751709,0.002,71015.0,71014.0,0.76755186]
[1730173751913,0.002,71015.0,71014.0,0.65937475]
[1730173752515,0.002,71015.0,71014.0,1.18999186]
[1730173752715,0.002,71015.0,71014.0,1.08181475]
[1730173753016,0.002,71015.0,71014.0,1.18999186]
[1730173753515,0.002,71015.0,71014.0,1.08181475]
[1730173754116,0.069153,71024.0,71022.0,0.070454]
[1730173754317,0.03450911,71023.0,71022.0,0.070454]
[1730173754815,0.10496211,71023.0,71022.0,0.070454]
[1730173755117,0.10496211,71023.0,71018.0,0.10817711]
[1730173755118,0.070457,71019.0,71018.0,0.17863511]
[1730173755516,0.1049678,71019.0,71018.0,0.17863511]
[1730173755814,0.10496753,71019.0,71018.0,0.17863511]
[1730173756010,0.3608,71028.0,71018.0,0.10817711]
[1730173756215,0.24987711,71029.0,71022.0,0.17863111]
[1730173756216,0.071453,71023.0,71022.0,0.17863111]
[1730173756513,0.071453,71023.0,71022.0,0.17963111]
[1730173756514,0.10596287,71023.0,71022.0,0.17963111]
[1730173757111,0.03550987,71023.0,71018.0,0.10817711]
[1730173757418,0.070457,71019.0,71018.0,0.10817711]
[1730173757916,0.070457,71019.0,71018.0,0.11017711]
[1730173757917,0.071457,71019.0,71018.0,0.11017711]
[1730173758414,0.071457,71019.0,71018.0,0.004]
[1730173758616,0.071457,71019.0,71014.0,0.05857666]
[1730173758617,0.070461,71015.0,71014.0,0.002112]
[1730173758821,0.17863811,71015.0,71010.0,0.04223279]
[1730173759021,0.070467,71009.0,71008.0,0.04223279]
[1730173759320,0.095,71014.0,71008.0,0.01416602]
[1730173759527,0.070468,71008.0,71007.0,0.3608]
[1730173760515,0.070468,71008.0,71007.0,0.40303279]
[1730173761014,0.070468,71008.0,71007.0,0.37542982]
[1730173761015,0.071468,71008.0,71007.0,0.37542982]
[1730173761505,0.072468,71008.0,71007.0,0.37542982]
[1730173761913,0.072468,71008.0,71007.0,0.001]
[1730173762414,0.072468,71008.0,70995.0,0.04223279]
[1730173762415,0.07048,70996.0,70995.0,0.04223279]
[1730173762609,0.070481,70995.0,70994.0,0.04223279]
[1730173762912,0.070481,70995.0,70994.0,0.01376735]
[1730173762913,0.118981,70995.0,70994.0,0.01376735]
[1730173763115,0.070482,70994.0,70993.0,0.11271479]
[1730173763318,0.070482,70994.0,70993.0,0.070482]
[1730173763713,0.42256,70993.0,70992.0,0.04218316]
[1730173763918,0.42256,70993.0,70979.0,0.07026354]
[1730173763919,0.90854,70993.0,70979.0,0.05624797]
[1730173764119,0.46897711,70980.0,70972.0,0.05624797]
[1730173764315,0.46897711,70980.0,70967.0,0.3608]
[1730173764316,0.070503,70973.0,70967.0,0.3608]
[1730173764524,0.10817711,70988.0,70973.0,0.21042536]
[1730173764714,0.070492,70984.0,70979.0,0.070496]
[1730173764914,0.3608,70987.0,70978.0,0.0464]
[1730173765116,0.431289,70987.0,70982.0,0.070493]
[1730173765824,0.070491,70986.0,70982.0,0.070493]
[1730173766223,0.3608,70987.0,70982.0,0.070493]
[1730173766528,0.3608,70987.0,70979.0,0.0458]
[1730173766529,0.17867011,70983.0,70979.0,0.0458]
[1730173766922,0.17867011,70983.0,70979.0,0.116296]
[1730173767139,0.002,70986.0,70979.0,0.0458]
[1730173767318,0.002,70986.0,70985.0,0.070491]
[1730173767717,0.3608,70987.0,70985.0,0.070491]
[1730173768022,0.070487,70989.0,70988.0,0.070488]
[1730173768219,0.3608,70994.0,70983.0,0.3608]
[1730173768220,0.431282,70994.0,70989.0,0.070486]
[1730173768626,0.431282,70994.0,70986.0,0.10817711]
[1730173768627,0.10817711,70999.0,70992.0,0.070483]
[1730173768828,0.10817711,70999.0,70993.0,0.070482]
[1730173768829,0.070479,70998.0,70993.0,0.070482]
[1730173769130,0.070479,70998.0,70990.0,0.3608]
[1730173769131,0.07048,70996.0,70994.0,0.070481]
[1730173769814,0.46897711,71002.0,70990.0,0.46977711]
[1730173770122,0.070476,71000.0,70996.0,0.070479]
[1730173770323,0.47073712,71002.0,70997.0,0.046]
[1730173770625,0.070478,70998.0,70997.0,0.046]
[1730173771324,0.15537711,71007.0,70997.0,0.4068]
[1730173771516,0.070472,71004.0,70999.0,0.10817711]
[1730173771717,0.3608,71012.0,71002.0,0.10817711]
[1730173771915,0.54132112,71012.0,71002.0,0.10817711]
[1730173772131,0.070465,71011.0,71006.0,0.10817711]
[1730173772620,0.070465,71011.0,71007.0,0.118969]
[1730173772824,0.00411543,71008.0,71007.0,0.118969]
[1730173773219,0.00211543,71008.0,71007.0,0.7531485]
[1730173773419,0.00411543,71008.0,71007.0,0.7531485]
[1730173773925,0.00311543,71008.0,71007.0,0.7531485]
[1730173774730,0.00411543,71008.0,71007.0,0.7531485]
[1730173774928,0.00411543,71008.0,71007.0,0.3306685]
[1730173775522,0.001,71008.0,71007.0,0.3306685]
[1730173775824,0.001,71008.0,71007.0,0.34460689]
[1730173776332,0.001,71008.0,71007.0,0.47572689]
[1730173776729,0.070461,71015.0,71007.0,0.40525789]
[1730173776929,0.001,71008.0,71007.0,0.40525789]
[1730173777522,0.070461,71015.0,71011.0,0.070464]
[1730173778623,0.070461,71015.0,71009.0,0.3608]
[1730173778824,0.070461,71015.0,71012.0,0.070464]
[1730173779034,0.072461,71015.0,71012.0,0.070464]
[1730173779924,0.070461,71015.0,71012.0,0.070464]
[1730173780123,0.072461,71015.0,71012.0,0.070464]
[1730173781431,0.0777746,71014.0,71011.0,0.06580612]
[1730173781635,0.0777746,71013.0,71011.0,0.06580612]
[1730173781840,0.072461,71015.0,71011.0,0.06580612]
[1730173781841,0.1482386,71012.0,71011.0,0.06580612]
[1730173784640,0.14823907,71012.0,71011.0,0.06580612]
[1730173785132,0.15023907,71012.0,71011.0,0.06580612]
[1730173786240,0.22524972,71012.0,71011.0,0.06580612]
[1730173786439,0.30302479,71012.0,71011.0,0.06580612]
[1730173787238,0.20078923,71012.0,71011.0,0.06580612]
[1730173787438,0.15023907,71012.0,71011.0,0.06580612]
[1730173788340,0.072464,71012.0,71011.0,0.06580612]
[1730173788840,0.070466,71010.0,71009.0,0.3608]
[1730173790237,0.072466,71010.0,71009.0,0.3608]
[1730173792838,0.002,71010.0,71007.0,0.01393839]
[1730173793033,0.070468,71008.0,71000.0,0.431275]
[1730173793244,0.17865211,71001.0,70994.0,0.00072]
[1730173793551,0.17865211,71001.0,70986.0,0.3608]
[1730173793552,0.070482,70994.0,70993.0,0.12180192]
[1730173793748,0.070482,70994.0,70993.0,0.00211284]
[1730173795147,0.070489,70987.0,70986.0,0.01147269]
[1730173795339,0.10817711,70989.0,70980.0,0.0496]
[1730173795539,0.070491,70985.0,70983.0,0.070492]
[1730173795743,0.070492,70984.0,70983.0,0.21034683]
[1730173795949,0.070492,70984.0,70981.0,0.21034683]
[1730173795950,0.070492,70984.0,70979.0,0.10817711]
[1730173796148,0.070492,70984.0,70982.0,0.070493]
[1730173796454,0.10817711,70986.0,70979.0,0.432056]
[1730173796747,0.070496,70980.0,70979.0,0.3608]
[1730173797942,0.10817711,70982.0,70973.0,0.37259038]
[1730173797943,0.070502,70974.0,70973.0,0.37259038]
[1730173798351,0.070502,70974.0,70973.0,0.58440849]
[1730173798746,0.070502,70974.0,70973.0,0.01179038]
[1730173798947,0.070506,70970.0,70969.0,0.070506]
[1730173799353,0.070507,70968.0,70967.0,0.21066139]
[1730173799544,0.10817711,70968.0,70966.0,0.00211365]
[1730173799742,0.070508,70967.0,70966.0,0.00211365]
[1730173800748,0.070511,70964.0,70963.0,0.01173842]
[1730173801057,0.070514,70962.0,70958.0,0.070517]
[1730173801452,0.070519,70956.0,70955.0,0.07052]
[1730173801757,0.07052,70955.0,70954.0,0.3608]
[1730173801948,0.07052,70955.0,70954.0,0.431321]
[1730173802251,0.07052,70955.0,70954.0,0.65261722]
[1730173802851,0.07152,70955.0,70954.0,0.65261722]
[1730173803744,0.07252,70955.0,70954.0,0.65261722]
[1730173804349,0.07152,70955.0,70954.0,0.65261722]
[1730173804545,0.07052,70955.0,70954.0,0.37210161]
[1730173804763,0.07152,70955.0,70954.0,0.37210161]
[1730173804955,0.07152,70955.0,70954.0,0.01130161]
[1730173805153,0.07052,70955.0,70954.0,0.3608]
[1730173805353,0.07152,70955.0,70954.0,0.3608]
[1730173805753,0.07052,70955.0,70954.0,0.3608]
[1730173805961,0.07152,70955.0,70953.0,0.08196007]
[1730173806258,0.001,70955.0,70954.0,0.28076265]
[1730173806463,0.10817711,70976.0,70954.0,0.68204165]
[1730173806655,0.46897711,70975.0,70966.0,0.10817711]
[1730173806854,0.070507,70968.0,70967.0,0.0504]
[1730173807657,0.070507,70968.0,70967.0,0.120908]
[1730173807862,0.10817711,70975.0,70967.0,0.15857711]
[1730173808067,0.10817711,70975.0,70967.0,0.01153403]
[1730173808255,0.10817711,70975.0,70927.0,0.07053]
[1730173808256,0.070516,70960.0,70957.0,0.070518]
[1730173808563,0.070517,70959.0,70958.0,0.21267103]
[1730173808747,0.070517,70959.0,70958.0,0.57347103]
[1730173808958,0.10817711,70967.0,70958.0,0.3608]
[1730173809251,0.070512,70963.0,70962.0,0.070513]
[1730173809457,0.10817711,70963.0,70958.0,0.57419103]
[1730173809654,0.070516,70960.0,70958.0,0.3608]
[1730173810057,0.070516,70960.0,70959.0,0.2126927]
[1730173810560,0.070516,70959.0,70958.0,0.3608]
[1730173810773,0.17869311,70959.0,70958.0,0.3608]
[1730173811068,0.18069311,70959.0,70958.0,0.3608]
[1730173811256,0.18069311,70959.0,70951.0,0.01385603]
[1730173811257,0.070523,70952.0,70951.0,0.01385603]
[1730173811453,0.17870011,70952.0,70951.0,0.01385603]
[1730173812055,0.17870011,70952.0,70951.0,0.00211391]
[1730173812260,0.28687722,70952.0,70951.0,0.00211391]
[1730173812767,0.28687722,70952.0,70946.0,0.0483]
[1730173812768,0.070529,70946.0,70945.0,0.3608]
[1730173813062,0.070529,70946.0,70945.0,0.37228136]
[1730173813960,0.071529,70946.0,70945.0,0.37228136]
[1730173814463,0.001,70946.0,70945.0,0.37228136]
[1730173814651,0.001,70946.0,70945.0,0.44281136]
[1730173814959,0.002,70946.0,70945.0,0.44281136]
[1730173815757,0.10817711,70958.0,70956.0,0.070519]
[1730173816761,0.10817711,70958.0,70957.0,0.070518]
[1730173816966,0.00211498,70961.0,70957.0,0.070518]
[1730173817452,0.002,70958.0,70957.0,0.070518]
[1730173817860,0.00211498,70961.0,70960.0,0.070515]
[1730173819068,0.070509,70967.0,70963.0,0.070512]
[1730173819366,0.10817711,70966.0,70963.0,0.070512]
[1730173819553,0.10817711,70966.0,70965.0,0.07051]
[1730173819960,0.17868611,70966.0,70965.0,0.07051]
[1730173820963,0.070511,70964.0,70963.0,0.001]
[1730173821663,0.10817711,70966.0,70963.0,0.001]
[1730173821664,0.001,70966.0,70965.0,0.07051]
[1730173821866,0.001,70966.0,70965.0,0.17868711]
[1730173822065,0.070498,70978.0,70976.0,0.070499]
[1730173822375,0.070498,70978.0,70972.0,0.10817711]
[1730173822376,0.070494,70982.0,70972.0,0.46897711]
[1730173822673,0.3608,70991.0,70972.0,0.46897711]
[1730173822674,0.10817711,70988.0,70980.0,0.070495]
[1730173822870,0.070492,70984.0,70981.0,0.070495]
[1730173823267,0.070494,70982.0,70981.0,0.070495]
[1730173824174,0.070498,70978.0,70977.0,0.049]
[1730173824476,0.072498,70978.0,70977.0,0.049]
[1730173825176,0.070498,70978.0,70977.0,0.049]
[1730173825372,0.1050282,70978.0,70977.0,0.049]
[1730173825967,0.1050282,70978.0,70977.0,0.119499]
[1730173825968,0.1070282,70978.0,70977.0,0.119499]
[1730173826682,0.0365302,70978.0,70972.0,0.3733792]
[1730173826977,0.070503,70973.0,70972.0,0.3608]
[1730173827188,0.14831831,70973.0,70972.0,0.3608]
[1730173827975,0.14831831,70973.0,70972.0,0.46897711]
[1730173828566,0.14831831,70973.0,70972.0,0.51627711]
[1730173828868,0.15031831,70973.0,70972.0,0.51627711]
[1730173829070,0.15031831,70973.0,70972.0,0.4081]
[1730173829773,0.25849542,70973.0,70972.0,0.3608]
[1730173830170,0.14831831,70973.0,70972.0,0.3608]
[1730173830475,0.15032448,70973.0,70972.0,0.3608]
[1730173831074,0.10703765,70973.0,70972.0,0.3608]
[1730173831264,0.10503765,70973.0,70972.0,0.3608]
[1730173831468,0.10703765,70973.0,70972.0,0.3608]
[1730173831874,0.10503765,70973.0,70972.0,0.3608]
[1730173832076,0.21521476,70973.0,70972.0,0.3608]
[1730173833575,0.18068011,70973.0,70972.0,0.3608]
[1730173833877,0.072503,70973.0,70972.0,0.3608]
[1730173834080,0.070503,70973.0,70972.0,0.3608]